Workbook

Sheet Sheet1
A1: 2025年生产部6月接收处置记录统计表 | R1: 自产废物
A2: 废物名称 | B2: 危废代码 | C2: 形态 | D2: 上月结存 | E2: 本月接收量 | F2: 处置量及工艺 | J2: 库存量 | K2: 1#库 | L2: 2#库 | M2: 干化 | N2: 罐区 | O2: 料坑 | R2: 废物名称 | S2: 上月结存 | T2: 本月产生量 | U2: 包数 | V2: 本月处理 | Y2: 库存 | Z2: 备注 | AA2: 存储位置
F3: 固废焚烧 | G3: 废液焚烧 | H3: 清洗大桶 | I3: 污泥干化 | K3: 1#库 | L3: 2#库 | M3: 干化 | N3: 罐区 | O3: 料坑 | V3: 焚烧处置 | W3: 液体炉 | X3: 拉运
A4: 反应残渣2 | B4: 271-001-02 | C4: 固态 | D4: 3 | F4: =3 -> 3 | J4: =D4+E4-F4-G4-H4-I4 -> 0 | P4: =K4+L4+M4+N4+O4 -> 0 | R4: 炉渣（回转窑） | S4: 276.968 | T4: =118.735-25.11 -> 93.625 | U4: =90-20 -> 70 | Y4: =S4+T4-V4-X4-W4 -> 370.593
A5: 过滤介质 | B5: 271-003-02 | C5: 固态 | D5: 1.92 | F5: =1.92 -> 1.92 | J5: 0 | P5: 0 | R5: 飞灰（回转窑） | S5: 9.628 | T5: 15.755 | U5: 38 | X5: 19.425 | Y5: 5.958
A6: 废盐 | B6: 271-005-02 | C6: 固态 | D6: 0 | E6: =6.34+24.82 -> 31.16 | F6: =6.34 -> 6.34 | J6: 24.82 | K6: 24.82 | P6: 24.82 | R6: 飞灰（废液炉） | S6: 3.685 | T6: 5.525 | U6: 13 | X6: 1.93 | Y6: 7.28
A7: 实验室废液 | B7: 900-002-03 | C7: 液态 | D7: 0 | E7: =5.11249 -> 5.11249 | J7: 5.11249 | L7: 5.11249 | P7: 5.11249 | R7: 废油渣/泥 | S7: 0 | Y7: 0 | Z7: 精馏切水后剩下的罐底泥
A8: 一般废药品 | B8: 900-002-03 | C8: 固态 | D8: 11.42 | E8: =6.48+0.0054 -> 6.4854 | F8: =11.42+6.48 -> 17.9 | J8: 0.0054 | L8: 0.0054 | P8: 0.0054 | R8: 含油污水 | S8: 0 | Y8: 0 | Z8: 蒸汽清洗过程 | AA8: 2#库
A9: 污泥 | B9: 263-011-04 | C9: 半固态 | D9: 0 | E9: =20.44 -> 20.44 | F9: =10.44+10 -> 20.44 | J9: 0 | P9: 0 | R9: 废商标 | S9: 0 | Y9: 0 | Z9: 除商标 | AA9: 2#库
A10: 废弃木材 | B10: 201-003-05 | C10: 固态 | D10: 0 | J10: 0 | P10: 0 | R10: 废残液 | S10: 0 | Y10: 0 | Z10: 抽残液 | AA10: 2#库
A11: 废有机溶剂 | B11: 900-401-06 | C11: 液态 | D11: 0 | J11: 0 | P11: 0 | R11: 废渣 | S11: 0 | Y11: 0 | Z11: 清洗过程 | AA11: 2#库
A12: 废有机溶剂及废物 | B12: 900-402-06 | C12: 液态 | D12: 96.553 | E12: =4.423+1.148 -> 5.571 | F12: =3.776 -> 3.776 | J12: 98.348 | L12: 98.348 | P12: 98.348 | R12: 漆渣 | S12: 0 | Y12: 0 | Z12: 清洗过程
A13: 清洗剂、渗透剂包装物 | B13: 900-402-06 | C13: 固态 | D13: 0 | E13: =0.05 -> 0.05 | F13: =0.05 -> 0.05 | J13: 0 | P13: 0 | R13: 污水厂污泥 | S13: 0 | Y13: 0 | Z13: 水处理后产生的污泥 | AA13: 2#库
A14: 废有机溶剂 | B14: 900-404-06 | C14: 液态 | D14: 11.724 | F14: =1.357+0.525 -> 1.882 | J14: 9.842 | L14: 9.842 | P14: 9.842 | R14: 废清洗剂 | S14: 0 | Y14: 0 | Z14: 清洗剂清洗过程
A15: 废有机溶剂 | B15: 900-407-06 | C15: 液态 | D15: 166.848 | E15: =24.01 -> 24.01 | G15: =0.81+15 -> 15.81 | J15: 175.048 | L15: 175.048 | P15: 175.048
A16: 危废污泥 | B16: 900-409-06 | C16: 固态 | D16: 0 | E16: =19.64+75.04 -> 94.68 | J16: 94.68 | L16: 94.68 | P16: 94.68
A17: 油污水 | B17: 251-001-08 | C17: 液态 | D17: 703.19 | J17: 703.19 | N17: 703.19 | P17: 703.19
A18: 废溶剂油 | B18: 291-001-08 | C18: 液态 | D18: 0 | E18: =0.5+0.78452 -> 1.28452 | J18: 1.28452 | L18: 1.28452 | P18: 1.28452
A19: 废溶剂油 | B19: 291-001-08 | C19: 半固态 | D19: 34.28 | J19: 34.28 | K19: 34.28 | P19: 34.28
A20: 研磨泥 | B20: 900-200-08 | C20: 固态 | D20: 13.4475 | E20: =20.46 -> 20.46 | F20: =13.4475+20.46 -> 33.9075 | J20: 0 | P20: 0
A21: HW08废油 | B21: 900-200-08 | C21: 液态 | D21: 99.383 | E21: =3.24 -> 3.24 | G21: =7.48 -> 7.48 | J21: 95.143 | K21: 8.163 | N21: 86.98 | P21: 95.143
A22: 废煤油 | B22: 900-201-08 | C22: 液态 | D22: 0.62 | E22: =0.86 -> 0.86 | J22: 1.48 | N22: 1.48 | P22: 1.48
A23: 废润滑脂 | B23: 900-209-08 | C23: 半固态 | D23: 0 | E23: =0.1 -> 0.1 | F23: =0.1 -> 0.1 | J23: 0
A24: 水处理浮渣及污泥 | B24: 900-210-08 | C24: 半固态 | D24: 290.252 | E24: =1.1+9.572 -> 10.672 | F24: =0.082+16.12+1.1 -> 17.302 | J24: 283.622 | K24: 18.07 | L24: 14.412 | N24: 251.14 | P24: =K24+L24+M24+N24+O24 -> 283.622
A25: 废机油、含油废水 | B25: 900-210-08 | C25: 液态 | D25: 99.68 | F25: =9+5.3 -> 14.3 | G25: =22.3+9.76 -> 32.06 | J25: 53.32 | K25: 26.64 | L25: 26.68 | P25: 53.32
A26: 废油泥 | B26: 900-210-08 | C26: 固态 | D26: 47.086 | E26: =7.94+9.7055+6.685+31.691 -> 56.0215 | F26: =16.366+9.7055 -> 26.0715 | J26: 77.036 | K26: 38.66 | L26: 38.376 | P26: 77.036
A27: 废白土 | B27: 900-213-08 | C27: 固态 | D27: 30.92 | F27: =15+15.92-10+10 -> 30.92 | J27: 0 | P27: 0
A28: 废矿物油 | B28: 900-214-08 | C28: 液态 | D28: 86.30074 | E28: =0.82+0.147+0.05+2.1 -> 3.117 | G28: =6.01069+10.5+11.2091 -> 27.71979 | J28: 61.69795 | N28: 61.69795 | P28: 61.69795
A29: 废矿物油 | B29: 900-217-08 | C29: 液态 | D29: 59.08755 | G29: =5.98+5+4.92 -> 15.9 | J29: 43.18755 | N29: 43.18755 | P29: 43.18755
A30: 废液压油 | B30: 900-218-08 | C30: 液态 | D30: 60.455 | E30: =0.85 -> 0.85 | G30: =8.3+4.02 -> 12.32 | J30: 48.985 | N30: 48.985 | P30: 48.985
A31: 废冷冻机油 | B31: 900-219-08 | C31: 液态 | D31: 14.82 | G31: =0.85 -> 0.85 | J31: 13.97 | N31: 13.97 | P31: 13.97
A32: 废矿物油与含矿物油废物 | B32: 900-220-08 | C32: 液态 | D32: 2.809 | E32: =3.14 -> 3.14 | J32: 5.949 | L32: 3.14 | N32: 2.809 | P32: 5.949
A33: 废矿物油 | B33: 900-249-08 | C33: 液态 | D33: 128.63138 | E33: =13.66+0.05+0.03884+0.188+0.5225+0.0468 -> 14.50614 | G33: =0.96+5.16+5.907+12.09+5.6543 -> 29.7713 | J33: 113.36622 | L33: 9.09 | N33: 104.27622 | P33: 113.36622
A34: 废矿物油、废油桶 | B34: 900-249-08 | C34: 固态 | D34: 3.98 | E34: =1.04+1.3+0.32+0.1+0.356 -> 3.116 | F34: =1.04+1.62+0.1+0.096 -> 2.856 | J34: 4.24 | K34: 0.26 | L34: 3.98 | P34: 4.24
A35: 废水、乳化液 | B35: 900-007-09 | C35: 液态 | D35: 119.6305 | E35: =1.3741+3.507+5 -> 9.8811 | F35: =1.3741 -> 1.3741 | G35: =0.92 -> 0.92 | J35: 127.2175 | L35: =127.2175-18 -> 109.2175 | O35: 18 | P35: 127.2175
A36: 废乳化液 | B36: 900-006-09 | C36: 液态 | D36: 149.451 | E36: =5.12+1.885+6.5235+33.1 -> 46.6285 | F36: =0.2+10+2 -> 12.2 | G36: =32.4+32.06+24.687+15.64 -> 104.787 | J36: 79.0925 | L36: 79.0925 | P36: 79.0925
A37: 砂轮沫 | B37: 900-006-09 | C37: 固态 | D37: 1.612 | F37: =1.612 -> 1.612 | J37: 0 | P37: 0
A38: 废焦油渣 | B38: 252-005-11 | C38: 固态 | D38: 10 | F38: =10 -> 10 | J38: 0 | P38: 0
A39: 废水汽提塔排重质烃 | B39: 252-009-11 | C39: 液态 | D39: 36.9 | J39: 36.9 | L39: 36.9 | P39: 36.9
A40: 煤焦油、釜残 | B40: 900-013-11 | C40: 固态 | D40: 2.29 | E40: =2.7985 -> 2.7985 | F40: =2.7985 -> 2.7985 | J40: 2.29 | L40: 2.29 | P40: 2.29
A41: 煤焦油 | B41: 900-013-11 | C41: 液态 | D41: 31.6355 | F41: =2.38 -> 2.38 | J41: 29.2555 | K41: 9.2955 | L41: 19.96 | P41: 29.2555
A42: 釜残 | B42: 900-013-11 | C42: 半固态 | D42: 391.992 | E42: =32+33.249+60.54 -> 125.789 | F42: =3.769+9.38+5 -> 18.149 | J42: 499.632 | K42: =470.932-20 -> 450.932 | L42: 28.7 | O42: 20 | P42: 499.632
A43: 煤焦油 | B43: 451-003-11 | C43: 液态 | D43: 96.39 | E43: =48.16+102.06+48.36 -> 198.58 | G43: =1.5 -> 1.5 | J43: 293.47 | L43: 293.47 | P43: 293.47
A44: 漆渣 | B44: 900-250-12 | C44: 固态 | D44: 19.835 | E44: =12.078 -> 12.078 | F44: =19.835+12.078 -> 31.913 | J44: 0 | P44: 0
A45: 漆渣 | B45: 900-250-12 | C45: 半固态 | D45: 0 | E45: =0.804 -> 0.804 | F45: =0.804 -> 0.804 | J45: 0 | P45: 0
A46: 油漆渣 | B46: 900-251-12 | C46: 固态 | D46: 0 | J46: 0 | P46: 0
A47: 废彩涂液 | B47: 900-252-12 | C47: 液态 | D47: 57.9 | E47: =0.5 -> 0.5 | F47: =0.5+21.44 -> 21.94 | J47: 36.46 | K47: 36.46 | P47: 36.46
A48: 废漆渣 | B48: 900-252-12 | C48: 固态 | D48: 201.1475 | E48: =75.556+57.492+80.234+25.932+15.98+5.5+47.891+11.9+58.11 -> 378.595 | F48: =19.2705+11.27-8+66.329+18.58+64.145+36.694+14.02+8.5+20.954+14 -> 265.7625 | J48: 313.98 | K48: =313.98-180 -> 133.98 | O48: 180 | P48: 313.98
A49: 油墨渣子、油漆 | B49: 900-299-12 | C49: 半固态 | D49: 0 | E49: =0.7905 -> 0.7905 | J49: 0.7905 | K49: 0.7905 | P49: 0.7905
A50: 硒鼓墨盒 | B50: 900-299-12 | C50: 固态 | D50: 0 | E50: =0.041+0.46+0.013 -> 0.514 | F50: =0.041+0.46+0.013 -> 0.514 | J50: 0 | P50: 0
A51: 油漆渣 | B51: 900-299-12 | C51: 液态 | D51: 2.4 | J51: 2.4 | K51: 2.4 | P51: 2.4
A52: 污泥 | B52: 264-012-12 | C52: 固态 | D52: 0 | E52: =0.5 -> 0.5 | J52: 0.5 | L52: 0.5 | P52: 0.5
A53: 发泡废料，废胶水 | B53: 900-014-13 | C53: 固态 | D53: 23.67 | E53: =3.56+2.54+12.82+3.96+29.74 -> 52.62 | F53: =12.11+9.1-11.81+15.37+2.54 -> 27.31 | J53: 48.98 | K53: =48.98-20 -> 28.98 | O53: 20 | P53: 48.98
A54: 有机树脂废物 | B54: 900-016-13 | C54: 半固态 | D54: 11.096 | F54: =5.76 -> 5.76 | J54: 5.336 | K54: 5.336 | P54: 5.336
A55: PBL真空废液 | B55: 265-101-13 | C55: 液态 | D55: 31.52 | G55: =9.5+4.5 -> 14 | J55: 17.52 | K55: 17.52 | P55: 17.52
A56: 镀铜溶液 | B56: 336-062-17 | C56: 液态 | D56: 10.16 | J56: 10.16 | L56: 10.16 | P56: 10.16
A57: 镀镍废液 | B57: 336-055-17 | C57: 液态 | D57: 0 | E57: =3.121 -> 3.121 | J57: 3.121 | L57: 3.121 | P57: 3.121
A58: 磷化污泥 | B58: 336-064-17 | C58: 固态 | D58: 2.76 | E58: =5.68153+6.2165 -> 11.89803 | F58: =2.76+5.68153 -> 8.44153 | J58: 6.2165 | L58: 6.2165 | P58: 6.2165
A59: 金属表面处理污泥 | B59: 336-064-17 | C59: 半固态 | D59: 0.5 | F59: =0.5 -> 0.5 | J59: 0 | P59: 0
A60: 金属表面处理污泥 | B60: 336-064-17 | C60: 液态 | D60: 0 | E60: =2.48+5.5+1.999 -> 9.979 | J60: 9.979 | L60: 9.979 | P60: 9.979
A61: 污泥 | B61: 336-069-17 | C61: 液态 | D61: 25.58 | J61: 25.58 | L61: 25.58 | P61: 25.58
A62: 污泥 | B62: 336-069-17 | C62: 固态 | D62: 16.1 | F62: =16.1 -> 16.1 | J62: 0 | P62: 0
A63: 废碱液 | B63: 251-015-35 | C63: 液态 | D63: 12.92 | E63: =12.24+13.28 -> 25.52 | F63: =4 -> 4 | G63: =8.92 -> 8.92 | J63: 25.52 | L63: 25.52 | P63: 25.52
A64: 废碱泥 | B64: 251-015-35 | C64: 半固态 | D64: 16.84 | J64: 16.84 | L64: 16.84 | P64: 16.84
A65: 废硫氢化钠残渣 | B65: 900-399-35 | C65: 半固态 | D65: 0 | E65: =18.36+28.4 -> 46.76 | J65: 46.76 | L65: 46.76 | P65: 46.76
A66: 废碱液 | B66: 900-352-35 | C66: 液态 | D66: 0 | E66: =7.38 -> 7.38 | J66: 7.38 | L66: 7.38 | P66: 7.38
A67: 废碱液 | B67: 900-354-35 | C67: 液态 | D67: 0 | E67: =5.6 -> 5.6 | G67: =5.6 -> 5.6 | J67: 0 | P67: 0
A68: 含酚废水 | B68: 261-070-39 | C68: 液态 | D68: 241.98 | G68: =34.9+8.64 -> 43.54 | J68: =D68+E68-F68-G68-H68-I68 -> 198.44 | N68: 198.44 | P68: 198.44
A69: 污泥 | B69: 261-084-45 | C69: 固态 | D69: 0 | E69: =3 -> 3 | J69: 3 | L69: 3 | P69: 3
A70: 含油废物 | B70: 900-041-49 | C70: 固态 | D70: 258.177 | E70: =21.207+168.97425+14.8275+5.07225+16.04+5.6803+4.4535+145.82155+11.31+40.2409 -> 433.62725 | F70: =35.938+15.997+86.642+48-6.5+61.387+20.55425+67.8475+48.5755+42.15175+28.09+36.4192+14.176-0.8 -> 498.4782 | J70: 193.32605 | K70: 160.9609 | L70: 32.36515 | P70: 193.32605
A71: 电捕焦油 | B71: 900-041-49 | C71: 液态 | D71: 0 | E71: =0.8 -> 0.8 | F71: 0.8 | J71: 0 | P71: 0
A72: 废酸碱袋 | B72: 900-042-49 | C72: 固态 | D72: 0.237 | E72: =0.593 -> 0.593 | F72: =0.237+0.593 -> 0.83 | J72: 0 | P72: 0
A73: 污泥 | B73: 772-006-49 | C73: 固态 | D73: 0 | E73: =11.72 -> 11.72 | F73: =11.72 -> 11.72 | J73: 0 | P73: 0
A74: 废活性炭 | B74: 900-039-49 | C74: 固态 | D74: 5.4255 | E74: =0.16+6.2705+2.336+0.48 -> 9.2465 | F74: =1.277+4.1485+6.4305+0.722 -> 12.578 | J74: 2.094 | L74: 2.094 | P74: 2.094
A75: 废水污泥 | B75: 900-046-49 | C75: 固态 | D75: 0 | E75: =4.8 -> 4.8 | F75: =4.8 -> 4.8 | J75: 0 | P75: 0
A76: 过期化学药品 | B76: 900-047-49 | C76: 固态 | D76: 0 | E76: =0.277+0.0014+0.8205+0.9416+0.694 -> 2.7345 | F76: =0.2784+0.3405+0.48+0.9216 -> 2.0205 | J76: 0.714 | L76: 0.714 | P76: 0.714
A77: 乙腈、异丙酮、废液 | B77: 900-047-49 | C77: 液态 | D77: 46.90185 | E77: =7.6177+1.2736+0.74+4.72985+7.68+3.8616+5.0023+0.1+17.0216 -> 48.02665 | F77: =1.08+5.291+5.05+0.55+2.28+2 -> 16.251 | G77: =1.73885+2.0136+1+0.02+0.62385 -> 5.3963 | J77: 73.2812 | L77: 73.2812 | P77: 73.2812
A78: 过期药品 | B78: 900-999-49 | C78: 固态 | D78: 0 | E78: =10.02 -> 10.02 | J78: 10.02 | K78: 10.02 | P78: 10.02
A79: 过期面膜原料、残液 | B79: 900-999-49 | C79: 液态 | D79: 17.4 | E79: =2.76 -> 2.76 | J79: 20.16 | L79: 20.16 | P79: 20.16
A80: 小计： | D80: 3808.85802 | E80: =SUM(E4:E79) -> 1772.54058 | F80: =SUM(F4:F79) -> 1159.80133 | G80: =SUM(G4:G79) -> 326.57439 | H80: =SUM(H4:H79) -> 0 | I80: =SUM(I4:I79) -> 0 | J80: 4095.02288 | K80: =SUM(K4:K79) -> 1007.5679 | L80: 1333.29926 | M80: 0 | N80: 1516.15572 | O80: 238 | P80: 4095.02288
A81: 合计： | F81: =F80+G80+H80 -> 1486.37572
